fUST/lending_fUST_20250727
["ID","MTS","AMOUNT","RATE_DAILY","PERIOD"]
[375170131,1753573832129,-405.0,0.00019563,2]
[375170133,1753573832139,-461.52,0.00019564,2]
[375170135,1753573832148,-1628.23207408,0.00019564,2]
[375170151,1753573837861,-718.23792592,0.00019564,2]
[375170153,1753573837871,-460.0,0.00019564,2]
[375170155,1753573837882,-460.0,0.00019564,2]
[375170157,1753573837893,-460.0,0.00019564,2]
[375170159,1753573837903,-579.36,0.00019564,2]
[375170161,1753573837913,-608.29,0.00019564,2]
[375170163,1753573837923,-888.7,0.00019564,2]
[375170165,1753573837934,-460.0,0.00019564,2]
[375170167,1753573837944,-829.2,0.00019564,2]
[375170169,1753573837954,-188.99726995,0.00019564,2]
[375170171,1753573837964,-576.43038979,0.00019565,2]
[375170173,1753573837974,-460.0,0.00019565,2]
[375170175,1753573837984,-460.0,0.00019565,2]
[375170177,1753573837994,-460.0,0.00019565,2]
[375170179,1753573838004,-460.0,0.00019565,2]
[375170181,1753573838013,-500.0,0.00019565,2]
[375170182,1753573838023,-500.0,0.00019565,2]
[375170184,1753573838033,-461.1280805,0.00019565,2]
[375170186,1753573838042,-460.0,0.00019565,2]
[375170188,1753573838052,-460.0,0.00019565,2]
[375170190,1753573838062,-460.0,0.00019565,2]
[375170192,1753573838071,-460.0,0.00019565,2]
[375170194,1753573838080,-460.0,0.00019565,2]
[375170196,1753573838090,-385.20603576,0.00019565,2]
[375170198,1753573838099,-460.0,0.00019565,2]
[375170200,1753573838109,-460.0,0.00019565,2]
[375170216,1753573838248,-460.0,0.00019565,2]
[375170218,1753573838265,-460.0,0.00019565,2]
[375170220,1753573838274,-460.0,0.00019565,2]
[375170222,1753573838284,-460.0,0.00019565,2]
[375170224,1753573838293,-460.0,0.00019565,2]
[375170226,1753573838303,-930.74,0.00019565,2]
[375170228,1753573838312,-460.0,0.00019565,2]
[375170230,1753573838321,-475.07,0.00019565,2]
[375170232,1753573838330,-852.95,0.00019565,2]
[375170234,1753573838340,-460.0,0.00019565,2]
[375170236,1753573838351,-1054.45,0.00019565,2]
[375170238,1753573838364,-320.66,0.00019565,2]
[375170240,1753573838373,-589.19,0.00019565,2]
[375170242,1753573838383,-564.03,0.00019565,2]
[375170244,1753573838392,-460.0,0.00019565,2]
[375170246,1753573838403,-460.0,0.00019565,2]
[375170248,1753573838412,-222.91,0.00019565,2]
[375170250,1753573838422,-460.0,0.00019565,2]
[375170252,1753573838432,-500.0,0.00019566,2]
[375170254,1753573838442,-460.0,0.00019566,2]
[375170256,1753573838454,-1464.27,0.00019566,2]
[375170258,1753573838464,-460.0,0.00019567,2]
[375170260,1753573838473,-460.0,0.00019567,2]
[375170262,1753573838483,-460.0,0.00019567,2]
[375170264,1753573838493,-460.0,0.00019567,2]
[375170266,1753573838502,-326.54617274,0.00019568,2]
[375170268,1753573838514,-133.45382726,0.00019568,2]
[375170270,1753573838524,-282.0921775,0.00019568,2]
[375170272,1753573838534,-140.00969515,0.00019568,2]
[375170274,1753573838546,-319.99030485,0.00019568,2]
[375170276,1753573838555,-543.64,0.00019568,2]
[375170278,1753573838565,-253.25591912,0.00019568,2]
[375170280,1753573838576,-500.0,0.00019568,2]
[375170282,1753573838585,-460.0,0.00019568,2]
[375170284,1753573838595,-579.49,0.00019568,2]
[375170286,1753573838605,-466.69,0.00019568,2]
[375170288,1753573838614,-49.03378536,0.00019568,2]
[375170693,1753573842986,-1403.26,0.00019566,2]
[375170695,1753573842996,-148.96621464,0.00019568,2]
[375170697,1753573843006,-151.0,0.00019568,2]
[375170699,1753573843015,-151.0,0.00019568,2]
[375170701,1753573843025,-151.0,0.00019568,2]
[375170703,1753573843034,-1006.37453044,0.00019807,2]
[375170705,1753573843044,-460.0,0.00019838,2]
[375170707,1753573843053,-461.52,0.00019838,2]
[375170709,1753573843062,-2346.47,0.00019838,2]
[375170711,1753573843072,-460.0,0.00019838,2]
[375170713,1753573843081,-888.7,0.00019838,2]
[375170715,1753573843091,-235.65,0.00019838,2]
[375170717,1753573843105,-829.2,0.00019838,2]
[375170719,1753573843114,-460.0,0.00019839,2]
[375170721,1753573843125,-460.0,0.00019839,2]
[375170723,1753573843134,-460.0,0.00019839,2]
[375170725,1753573843143,-460.0,0.00019839,2]
[375170727,1753573843153,-460.0,0.00019839,2]
[375170729,1753573843163,-460.0,0.00019839,2]
[375170731,1753573843173,-460.0,0.00019839,2]
[375170733,1753573843182,-460.0,0.00019839,2]
[375170735,1753573843191,-460.0,0.00019839,2]
[375170737,1753573843200,-168.53719066,0.00019839,2]
[375170739,1753573843210,-460.0,0.00019839,2]
[375170741,1753573843219,-460.0,0.00019839,2]
[375170743,1753573843228,-930.74,0.00019839,2]
[375170745,1753573843238,-244.29,0.00019839,2]
[375170747,1753573843247,-852.95,0.00019839,2]
[375170749,1753573843256,-460.0,0.00019839,2]
[375170751,1753573843265,-1054.45,0.00019839,2]
[375170753,1753573843275,-589.19,0.00019839,2]
[375170755,1753573843284,-460.0,0.00019839,2]
[375170757,1753573843294,-460.0,0.00019839,2]
[375170759,1753573843303,-460.0,0.00019841,2]
[375170761,1753573843313,-460.0,0.00019841,2]
[375170763,1753573843322,-460.0,0.00019841,2]
[375170765,1753573843332,-460.0,0.00019841,2]
[375170767,1753573843341,-500.0,0.00019842,2]
[375170769,1753573843351,-151.0,0.00019842,2]
[375170770,1753573843365,-195.36597427,0.00019842,2]
[375170772,1753573843374,-543.64,0.00019842,2]
[375170774,1753573843383,-460.0,0.00019842,2]
[375170776,1753573843394,-579.49,0.00019842,2]
[375170778,1753573843403,-466.69,0.00019842,2]
[375170780,1753573843412,-467.26,0.00020112,2]
[375170782,1753573843423,-461.52,0.00020112,2]
[375170784,1753573843433,-2346.47,0.00020112,2]
[375170786,1753573843445,-460.0,0.00020112,2]
[375170788,1753573843455,-888.7,0.00020112,2]
[375170790,1753573843465,-829.2,0.00020112,2]
[375170792,1753573843474,-460.0,0.00020113,2]
[375170794,1753573843484,-460.0,0.00020113,2]
[375170795,1753573843493,-460.0,0.00020113,2]
[375170796,1753573843502,-460.0,0.00020113,2]
[375170797,1753573843512,-930.74,0.00020113,2]
[375170798,1753573843521,-852.95,0.00020113,2]
[375170799,1753573843531,-460.0,0.00020113,2]
[375170800,1753573843540,-1054.45,0.00020113,2]
[375170801,1753573843549,-589.19,0.00020113,2]
[375170802,1753573843559,-460.0,0.00020113,2]
[375170803,1753573843568,-460.0,0.00020113,2]
[375170804,1753573843577,-460.0,0.00020115,2]
[375170805,1753573843587,-460.0,0.00020115,2]
[375170807,1753573843596,-460.0,0.00020115,2]
[375170810,1753573843607,-396.0,0.00020116,2]
[375170812,1753573843617,-151.0,0.00020116,2]
[375170814,1753573843626,-543.64,0.00020116,2]
[375170816,1753573843636,-460.0,0.00020116,2]
[375170818,1753573843647,-579.49,0.00020116,2]
[375170819,1753573843656,-466.69,0.00020116,2]
[375170821,1753573843665,-150.0,0.00020224,2]
[375170824,1753573843675,-215.9757969,0.00020229,2]
[375170826,1753573843686,-262.79810732,0.00020232,2]
[375170828,1753573843696,-393.33980321,0.00020232,2]
[375170830,1753573843705,-556.63948681,0.00020232,2]
[375170832,1753573843715,-12629.83479014,0.00020233,2]
[375170834,1753573843725,-461.52,0.00020386,2]
[375170836,1753573843734,-2346.47,0.00020386,2]
[375170838,1753573843743,-460.0,0.00020386,2]
[375170840,1753573843752,-888.7,0.00020386,2]
[375170842,1753573843761,-829.2,0.00020386,2]
[375170844,1753573843771,-460.0,0.00020387,2]
[375170846,1753573843780,-460.0,0.00020387,2]
[375170848,1753573843790,-460.0,0.00020387,2]
[375170850,1753573843799,-460.0,0.00020387,2]
[375170852,1753573843808,-930.74,0.00020387,2]
[375170854,1753573843818,-852.95,0.00020387,2]
[375170855,1753573843827,-220.0,0.00020387,2]
[375170857,1753573843836,-1054.45,0.00020387,2]
[375170859,1753573843846,-589.19,0.00020387,2]
[375170861,1753573843855,-460.0,0.00020387,2]
[375170863,1753573843865,-460.0,0.00020387,2]
[375170865,1753573843875,-151.0,0.00020389,2]
[375170867,1753573843885,-460.0,0.00020389,2]
[375170869,1753573843895,-460.0,0.00020389,2]
[375170871,1753573843905,-460.0,0.00020389,2]
[375170874,1753573843915,-151.0,0.0002039,2]
[375170876,1753573843925,-151.0,0.0002039,2]
[375170878,1753573843934,-151.0,0.0002039,2]
[375170880,1753573843945,-543.64,0.0002039,2]
[375170882,1753573843954,-460.0,0.0002039,2]
[375170884,1753573843963,-579.49,0.0002039,2]
[375170885,1753573843972,-466.69,0.0002039,2]
[375170888,1753573843982,-319.37,0.00020526,3]
[375170889,1753573843992,-159.69,0.00020526,3]
[375170891,1753573844002,-479.08,0.00020526,3]
[375170893,1753573844011,-151.0,0.00020536,2]
[375170895,1753573844021,-9435.12573428,0.00020536,3]
[375170897,1753573844031,-476.34170116,0.00020536,3]
[375170899,1753573844040,-151.0,0.00020636,2]
[375170901,1753573844050,-151.0,0.00020637,2]
[375170903,1753573844059,-228.803984,0.00020637,2]
[375170905,1753573844068,-461.52,0.0002066,2]
[375170907,1753573844078,-2346.47,0.0002066,2]
[375170909,1753573844088,-460.0,0.0002066,2]
[375170911,1753573844098,-888.7,0.0002066,2]
[375170913,1753573844109,-829.2,0.0002066,2]
[375170915,1753573844118,-460.0,0.00020661,2]
[375170917,1753573844128,-460.0,0.00020661,2]
[375170919,1753573844138,-460.0,0.00020661,2]
[375170921,1753573844148,-460.0,0.00020661,2]
[375170923,1753573844158,-930.74,0.00020661,2]
[375170925,1753573844167,-852.95,0.00020661,2]
[375170927,1753573844177,-1054.45,0.00020661,2]
[375170929,1753573844187,-589.19,0.00020661,2]
[375170931,1753573844196,-460.0,0.00020661,2]
[375170933,1753573844205,-460.0,0.00020661,2]
[375170935,1753573844215,-460.0,0.00020663,2]
[375170937,1753573844225,-460.0,0.00020663,2]
[375170939,1753573844236,-460.0,0.00020663,2]
[375170941,1753573844246,-253.0,0.00020664,2]
[375170943,1753573844256,-543.64,0.00020664,2]
[375170945,1753573844266,-460.0,0.00020664,2]
[375170947,1753573844278,-579.49,0.00020664,2]
[375170949,1753573844288,-466.69,0.00020664,2]
[375170951,1753573844299,-151.0,0.00020673,2]
[375170953,1753573844309,-183.149,0.0002079,2]
[375170955,1753573844320,-2240.44501655,0.000209,4]
[375170957,1753573844329,-461.52,0.00020934,2]
[375170959,1753573844339,-2346.47,0.00020934,2]
[375170961,1753573844348,-460.0,0.00020934,2]
[375170963,1753573844362,-888.7,0.00020934,2]
[375170965,1753573844372,-829.2,0.00020934,2]
[375170967,1753573844381,-511.54032096,0.00020935,2]
[375170970,1753573844392,-460.0,0.00020935,2]
[375170971,1753573844403,-460.0,0.00020935,2]
[375170973,1753573844413,-460.0,0.00020935,2]
[375170976,1753573844422,-930.74,0.00020935,2]
[375170977,1753573844432,-852.95,0.00020935,2]
[375170980,1753573844442,-1054.45,0.00020935,2]
[375170981,1753573844452,-589.19,0.00020935,2]
[375170984,1753573844463,-151.0,0.00020935,2]
[375170986,1753573844475,-460.0,0.00020935,2]
[375170987,1753573844486,-460.0,0.00020935,2]
[375170990,1753573844497,-151.0,0.00020936,2]
[375170991,1753573844508,-151.0,0.00020936,2]
[375170994,1753573844517,-151.0,0.00020936,2]
[375170996,1753573844527,-546.04,0.00020937,2]
[375170998,1753573844536,-460.0,0.00020937,2]
[375171000,1753573844546,-460.0,0.00020937,2]
[375171001,1753573844555,-543.64,0.00020938,2]
[375171004,1753573844564,-460.0,0.00020938,2]
[375171005,1753573844574,-579.49,0.00020938,2]
[375171008,1753573844583,-151.0,0.00020938,2]
[375171010,1753573844593,-466.69,0.00020938,2]
[375171011,1753573844602,-288.44592165,0.0002102,2]
[375171014,1753573844612,-407.0,0.00021043,2]
[375171016,1753573844622,-151.0,0.0002106,2]
[375171018,1753573844631,-487.50545559,0.0002107,2]
[375171020,1753573844641,-2240.44501639,0.00021072,4]
[375171022,1753573844650,-3000.0,0.0002108,2]
[375171023,1753573844659,-151.0,0.0002108,2]
[375171026,1753573844670,-3000.0,0.0002109,2]
[375171028,1753573844679,-3000.0,0.000211,2]
[375171030,1753573844689,-3000.0,0.0002111,2]
[375171032,1753573844699,-3000.0,0.0002112,2]
[375171034,1753573844708,-3000.0,0.0002113,2]
[375171036,1753573844718,-260.0,0.0002113,2]
[375171038,1753573844728,-3000.0,0.0002114,2]
[375171040,1753573844737,-3000.0,0.0002115,2]
[375171042,1753573844747,-3000.0,0.0002116,2]
[375171044,1753573844756,-151.0,0.0002116,2]
[375171046,1753573844766,-116.75362257,0.0002117,2]
[375171196,1753573846224,-1403.26,0.0001984,2]
[375171198,1753573846233,-1403.26,0.00020114,2]
[375171210,1753573846339,-1403.26,0.00020388,2]
[375171212,1753573846349,-1403.26,0.00020662,2]
[375171214,1753573846360,-866.14,0.00020924,10]
[375171216,1753573846370,-214.34387,0.00020935,2]
[375171218,1753573846379,-2883.24637743,0.0002117,2]
[375171220,1753573846389,-500.0,0.00021173,2]
[375171222,1753573846398,-500.0,0.00021173,2]
[375171224,1753573846409,-269.24024281,0.00021173,2]
[375171226,1753573846423,-230.75975719,0.00021173,2]
[375171228,1753573846432,-367.10208047,0.00021173,2]
[375171230,1753573846443,-500.0,0.00021173,2]
[375171232,1753573846453,-282.897586,0.00021173,2]
[375171235,1753573846462,-3000.0,0.0002118,2]
[375171236,1753573846472,-470.7311227,0.0002119,2]
[375171239,1753573846484,-301.7542578,0.0002119,2]
[375171904,1753574258682,163.0,0.000195,2]
[375171906,1753574541624,5000.0,0.0001951,2]
[375171907,1753574556941,5000.0,0.0001951,2]
[375171908,1753574564816,5000.0,0.0001951,2]
[375171909,1753574573110,2740.52410455,0.0001951,2]
[375171910,1753574573136,2259.47589545,0.0001951,2]
[375171911,1753574581473,5000.0,0.0001951,2]
[375171912,1753574589632,5000.0,0.0001951,2]
[375171913,1753574597468,5000.0,0.0001951,2]
[375171914,1753574599400,369.83460703,0.00018975,2]
[375171915,1753574599901,184.91730351,0.00018975,2]
[375171916,1753574605698,5000.0,0.0001951,2]
[375171917,1753574621603,5000.0,0.0001951,2]
[375171918,1753574637267,2185.77219401,0.0001951,2]
[375171919,1753574637291,2814.22780599,0.0001951,2]
[375171920,1753574653467,5000.0,0.0001951,2]
[375171921,1753574668869,5000.0,0.0001951,2]
[375171922,1753574684262,5000.0,0.0001951,2]
[375171924,1753574699282,5000.0,0.0001951,2]
[375171925,1753574701127,165.015947,0.00013699,2]
[375171926,1753574701797,185.23820234,0.00019462,2]
[375171927,1753574714991,5000.0,0.0001951,2]
[375171928,1753574732829,1835.51804467,0.0001951,2]
[375171929,1753574732855,3164.48195533,0.0001951,2]
[375171930,1753574748274,5000.0,0.0001951,2]
[375171931,1753574764605,5000.0,0.0001951,2]
[375171932,1753574780427,5000.0,0.0001951,2]
[375171933,1753574790213,11835.51804467,0.00018563,2]
[375171934,1753574790237,13064.48195533,0.00018563,2]
[375171935,1753574795753,5000.0,0.0001951,2]
[375171936,1753574811583,5000.0,0.0001951,2]
[375171937,1753574826898,5000.0,0.0001951,2]
[375171938,1753574832133,-300.0,0.00019559,2]
[375171939,1753574832154,-300.0,0.0001956,2]
[375171940,1753574832175,-362.5234751,0.0001956,2]
[375171941,1753574834767,1935.51804467,0.0001951,2]
[375171942,1753574834792,3064.48195533,0.0001951,2]
[375171943,1753574842679,168.31734441,0.0001946,2]
[375171944,1753574842893,214.03920358,0.0001951,2]
[375171945,1753574843088,168.31734441,0.00019462,2]
[375171946,1753574901028,339.37967254,0.00018975,2]
[375171948,1753574976843,185.890026,0.00018564,2]
[375171961,1753575032315,-460.0,0.00019559,2]
[375171963,1753575032325,-424.92369681,0.00019559,2]
[375172123,1753575038204,-35.07630319,0.00019559,2]
[375172124,1753575038214,-460.0,0.00019559,2]
[375172125,1753575038224,-460.0,0.00019559,2]
[375172126,1753575038234,-175.17704924,0.00019559,2]
[375172127,1753575038245,-460.0,0.00019559,2]
[375172128,1753575038255,-460.0,0.00019559,2]
[375172129,1753575038265,-460.0,0.00019559,2]
[375172130,1753575038275,-521.72826935,0.00019559,2]
[375172131,1753575038285,-460.0,0.00019559,2]
[375172132,1753575038295,-502.73276651,0.00019559,2]
[375172133,1753575038305,-222.29317711,0.00019559,2]
[375172134,1753575038315,-502.67276909,0.00019559,2]
[375172135,1753575038324,-495.78913421,0.00019559,2]
[375172136,1753575038334,-500.0,0.00019559,2]
[375172137,1753575038344,-440.16891402,0.00019559,2]
[375172138,1753575038354,-97.4765249,0.0001956,2]
[375172139,1753575038364,-460.0,0.0001956,2]
[375172140,1753575038373,-462.01426599,0.0001956,2]
[375172141,1753575038383,-460.57093295,0.0001956,2]
[375172142,1753575038395,-460.0,0.0001956,2]
[375172143,1753575038407,-460.0,0.0001956,2]
[375172144,1753575038421,-460.0,0.0001956,2]
[375172145,1753575038431,-460.0,0.0001956,2]
[375172146,1753575038586,-460.0,0.0001956,2]
[375172147,1753575038596,-460.0,0.0001956,2]
[375172148,1753575038605,-460.0,0.0001956,2]
[375172149,1753575038615,-50000.0,0.0001956,2]
[375172150,1753575038624,-460.0,0.0001956,2]
[375172151,1753575038634,-460.0,0.0001956,2]
[375172152,1753575038643,-590.39,0.0001956,2]
[375172153,1753575038652,-606.72238243,0.0001956,2]
[375172154,1753575038665,-514.55715611,0.0001956,2]
[375172155,1753575038674,-460.0,0.0001956,2]
[375172156,1753575038683,-460.0,0.0001956,2]
[375172157,1753575038693,-460.0,0.0001956,2]
[375172158,1753575038702,-766.79,0.0001956,2]
[375172159,1753575038711,-460.0,0.00019561,2]
[375172160,1753575038720,-460.0,0.00019561,2]
[375172161,1753575038730,-186.56764808,0.00019561,2]
[375172162,1753575038740,-460.0,0.00019561,2]
[375172163,1753575038752,-460.0,0.00019561,2]
[375172164,1753575038762,-460.0,0.00019561,2]
[375172165,1753575038771,-460.0,0.00019561,2]
[375172166,1753575038781,-460.0,0.00019561,2]
[375172167,1753575038790,-460.0,0.00019561,2]
[375172168,1753575038801,-460.0,0.00019561,2]
[375172169,1753575038811,-460.0,0.00019561,2]
[375172170,1753575038820,-460.0,0.00019561,2]
[375172171,1753575038831,-460.0,0.00019561,2]
[375172172,1753575038842,-460.0,0.00019561,2]
[375172173,1753575038851,-460.0,0.00019561,2]
[375172174,1753575038860,-460.0,0.00019561,2]
[375172175,1753575038870,-460.0,0.00019561,2]
[375172176,1753575038879,-460.0,0.00019561,2]
[375172177,1753575038888,-845.08,0.00019561,2]
[375172178,1753575038898,-460.0,0.00019561,2]
[375172179,1753575038907,-460.0,0.00019561,2]
[375172180,1753575038917,-460.0,0.00019561,2]
[375172181,1753575038926,-786.87,0.00019561,2]
[375172182,1753575038935,-460.0,0.00019561,2]
[375172183,1753575038944,-460.0,0.00019561,2]
[375172184,1753575038953,-460.0,0.00019561,2]
[375172185,1753575038963,-460.65600093,0.00019561,2]
[375172186,1753575038972,-548.2,0.00019561,2]
[375172187,1753575038981,-460.0,0.00019561,2]
[375172188,1753575038990,-460.0,0.00019561,2]
[375172189,1753575038999,-460.0,0.00019561,2]
[375172190,1753575039008,-460.0,0.00019561,2]
[375172191,1753575039017,-460.0,0.00019561,2]
[375172192,1753575039026,-460.0,0.00019561,2]
[375172193,1753575039035,-460.0,0.00019561,2]
[375172194,1753575039044,-460.0,0.00019561,2]
[375172195,1753575039053,-2055.52,0.00019561,2]
[375172196,1753575039062,-392.81746197,0.00019561,2]
[375172197,1753575039071,-500.0,0.00019561,2]
[375172198,1753575039080,-500.0,0.00019561,2]
[375172199,1753575039089,-500.0,0.00019561,2]
[375172200,1753575039097,-500.0,0.00019561,2]
[375172201,1753575039106,-431.87842287,0.00019561,2]
[375172202,1753575039115,-500.0,0.00019561,2]
[375172203,1753575039126,-500.0,0.00019561,2]
[375172204,1753575039135,-500.0,0.00019561,2]
[375172205,1753575039144,-460.0,0.00019562,2]
[375172206,1753575039153,-470.68754203,0.00019562,2]
[375172207,1753575039162,-460.0,0.00019562,2]
[375172208,1753575039171,-461.49319222,0.00019562,2]
[375172209,1753575039180,-460.0,0.00019562,2]
[375172210,1753575039189,-460.0,0.00019562,2]
[375172211,1753575039199,-460.0,0.00019562,2]
[375172212,1753575039208,-460.0,0.00019562,2]
[375172213,1753575039218,-1000.0,0.00019562,2]
[375172214,1753575039228,-460.0,0.00019562,2]
[375172215,1753575039238,-460.0,0.00019562,2]
[375172216,1753575039247,-460.0,0.00019562,2]
[375172217,1753575039257,-397.16559716,0.00019562,2]
[375172218,1753575039266,-460.0,0.00019562,2]
[375172219,1753575039276,-460.0,0.00019562,2]
[375172220,1753575039285,-460.0,0.00019562,2]
[375172221,1753575039295,-189.49543788,0.00019562,2]
[375172222,1753575039305,-460.0,0.00019562,2]
[375172223,1753575039314,-460.0,0.00019562,2]
[375172224,1753575039323,-588.64146714,0.00019562,2]
[375172225,1753575039333,-460.0,0.00019562,2]
[375172226,1753575039342,-460.0,0.00019562,2]
[375172227,1753575039352,-460.0,0.00019562,2]
[375172228,1753575039361,-460.0,0.00019562,2]
[375172229,1753575039370,-457.59336901,0.00019562,2]
[375172230,1753575039380,-460.0,0.00019562,2]
[375172231,1753575039390,-460.0,0.00019562,2]
[375172232,1753575039399,-460.0,0.00019562,2]
[375172233,1753575039409,-460.0,0.00019562,2]
[375172234,1753575039418,-460.0,0.00019562,2]
[375172235,1753575039428,-460.0,0.00019562,2]
[375172236,1753575039438,-460.0,0.00019562,2]
[375172237,1753575039448,-460.0,0.00019562,2]
[375172238,1753575039458,-460.0,0.00019562,2]
[375172239,1753575039468,-470.89060187,0.00019562,2]
[375172240,1753575039479,-460.0,0.00019562,2]
[375172241,1753575039488,-597.94151094,0.00019562,2]
[375172242,1753575039499,-460.0,0.00019562,2]
[375172243,1753575039509,-460.0,0.00019562,2]
[375172244,1753575039519,-460.0,0.00019562,2]
[375172245,1753575039529,-460.0,0.00019562,2]
[375172246,1753575039539,-460.0,0.00019562,2]
[375172247,1753575039548,-460.0,0.00019562,2]
[375172248,1753575039558,-460.0,0.00019562,2]
[375172249,1753575039568,-460.0,0.00019562,2]
[375172250,1753575039578,-422.82562663,0.00019562,2]
[375172251,1753575039588,-460.0,0.00019562,2]
[375172252,1753575039598,-460.0,0.00019562,2]
[375172254,1753575039607,-460.0,0.00019562,2]
[375172256,1753575039617,-460.0,0.00019562,2]
[375172257,1753575039627,-460.0,0.00019562,2]
[375172258,1753575039636,-460.0,0.00019562,2]
[375172259,1753575039645,-485.73859243,0.00019562,2]
[375172260,1753575039655,-460.0,0.00019562,2]
[375172261,1753575039665,-460.0,0.00019562,2]
[375172262,1753575039674,-460.0,0.00019562,2]
[375172263,1753575039683,-460.0,0.00019562,2]
[375172264,1753575039692,-460.0,0.00019562,2]
[375172265,1753575039702,-460.0,0.00019562,2]
[375172267,1753575039711,-460.0,0.00019562,2]
[375172269,1753575039725,-460.0,0.00019562,2]
[375172270,1753575039735,-460.0,0.00019562,2]
[375172271,1753575039745,-343.23801622,0.00019562,2]
[375172272,1753575039757,-460.0,0.00019562,2]
[375172273,1753575039766,-460.0,0.00019562,2]
[375172274,1753575039776,-460.0,0.00019562,2]
[375172275,1753575039785,-500.0,0.00019562,2]
[375172276,1753575039796,-500.0,0.00019562,2]
[375172277,1753575039806,-460.0,0.00019562,2]
[375172278,1753575039816,-460.0,0.00019562,2]
[375172279,1753575039827,-460.0,0.00019562,2]
[375172280,1753575039836,-460.0,0.00019562,2]
[375172281,1753575039846,-460.0,0.00019562,2]
[375172282,1753575039856,-460.0,0.00019562,2]
[375172283,1753575039867,-460.0,0.00019562,2]
[375172284,1753575039877,-460.0,0.00019562,2]
[375172285,1753575039887,-460.0,0.00019562,2]
[375172286,1753575039896,-460.0,0.00019562,2]
[375172287,1753575039906,-552.46,0.00019562,2]
[375172288,1753575039916,-460.0,0.00019562,2]
[375172289,1753575039927,-465.25,0.00019562,2]
[375172290,1753575039937,-460.0,0.00019562,2]
[375172291,1753575039947,-460.0,0.00019562,2]
[375172292,1753575039956,-460.0,0.00019562,2]
[375172293,1753575039966,-602.52113801,0.00019562,2]
[375172294,1753575039976,-460.0,0.00019562,2]
[375172295,1753575039986,-460.0,0.00019562,2]
[375172296,1753575039995,-460.0,0.00019562,2]
[375172297,1753575040005,-460.0,0.00019562,2]
[375172298,1753575040015,-751.98,0.00019562,2]
[375172299,1753575040024,-460.0,0.00019562,2]
[375172300,1753575040034,-460.0,0.00019562,2]
[375172301,1753575040043,-460.0,0.00019562,2]
[375172302,1753575040063,-460.0,0.00019562,2]
[375172303,1753575040073,-460.0,0.00019562,2]
[375172304,1753575040083,-460.0,0.00019562,2]
[375172305,1753575040093,-460.0,0.00019562,2]
[375172306,1753575040102,-460.0,0.00019562,2]
[375172307,1753575040112,-460.0,0.00019562,2]
[375172308,1753575040122,-460.0,0.00019562,2]
[375172309,1753575040132,-460.0,0.00019562,2]
[375172310,1753575040142,-460.0,0.00019562,2]
[375172311,1753575040152,-532.71,0.00019562,2]
[375172312,1753575040161,-460.0,0.00019562,2]
[375172313,1753575040173,-503.11,0.00019562,2]
[375172314,1753575040185,-460.0,0.00019562,2]
[375172315,1753575040196,-517.5,0.00019562,2]
[375172316,1753575040206,-460.0,0.00019562,2]